fUSD/lending_fUSD_20240125
["ID","MTS","AMOUNT","RATE_DAILY","PERIOD"]
[312697800,1706154644695,-12748.0,0.0004029,2]
[312697801,1706154644704,-6530.0,0.0004029,2]
[312697802,1706154644714,-150.69815995,0.00040295,4]
[312697803,1706154644724,-3984.26542287,0.00040306,2]
[312697804,1706154644736,-585.16577305,0.00040307,4]
[312697805,1706154644747,-150.01,0.00040308,2]
[312697806,1706154644757,-3301.0962401,0.00040308,2]
[312697807,1706154644766,-1507.43679113,0.00040309,4]
[312697808,1706154644776,-1507.43679113,0.00040309,4]
[312697809,1706154644786,-959.02781888,0.00040309,2]
[312697810,1706154644796,-200.00230023,0.00040309,2]
[312697811,1706154644805,-388.59754163,0.00040309,15]
[312697812,1706154644815,-155.33981355,0.00040309,4]
[312697813,1706154644825,-365.21204293,0.00040309,30]
[312697814,1706154644834,-2000.0,0.00040309,7]
[312697815,1706154644844,-200.0,0.00040309,7]
[312697816,1706154644854,-167874.3097211,0.00040309,2]
[312697817,1706154646099,-155.0,0.00025542,2]
[312697818,1706154646109,-150.0,0.00040122,2]
[312697819,1706154646119,-157.62592395,0.00040147,4]
[312697820,1706154646128,-150.0,0.00040158,2]
[312697821,1706154646138,-150.0,0.00040181,2]
[312697822,1706154646147,-150.0,0.00040218,2]
[312697823,1706154646157,-150.0,0.00040235,2]
[312697824,1706154646167,-150.0,0.00040246,2]
[312697825,1706154646176,-8090.55795571,0.00040309,2]
[312697826,1706154646187,-10067.80896735,0.00040309,2]
[312697827,1706154646198,-8143.25099462,0.00040309,2]
[312697828,1706154646271,-100000.0,0.00028814,2]
[312697829,1706154646281,-61470.00835602,0.00040309,2]
[312697830,1706154646290,-15405.9380335,0.00040309,2]
[312697831,1706154646300,-740.63786378,0.00040309,2]
[312697832,1706154646313,-7260.1924764,0.00040309,2]
[312697833,1706154646323,-740.6378634,0.00040309,2]
[312697834,1706154646334,-276.95807257,0.00040311,2]
[312697835,1706154646343,-131469.21314058,0.00040311,2]
[312697836,1706154646353,-3108.77059293,0.00040311,2]
[312697837,1706154646363,-166.72870855,0.00040311,2]
[312697838,1706154646373,-9970.45299251,0.00040311,2]
[312697839,1706154646385,-3025.42961279,0.00040311,2]
[312697840,1706154646396,-3647.62594526,0.00040311,2]
[312697841,1706154646407,-14475.32339672,0.00040311,2]
[312697842,1706154646417,-1022.4963166,0.00040311,2]
[312697843,1706154646428,-9284.03233214,0.00040311,120]
[312697844,1706154646606,-994.55659917,0.00040311,120]
[312697845,1706154646626,-2397.35460174,0.00040311,120]
[312697849,1706155603094,-163.15038394,0.00021977,2]
[312697850,1706155603114,-3012.41515928,0.00022076,2]
[312697866,1706155833613,-852.48216636,0.00022076,2]
[312697867,1706155833622,-447.51783364,0.00022077,2]
[312697868,1706155833653,-280.27216636,0.00022077,2]
[312697869,1706155833662,-428.71291942,0.00022077,2]
[312697870,1706155833722,-280.24516117,0.00022077,2]
[312697871,1706155833747,-10.72191941,0.00022077,2]
[312697872,1706155833756,-630.63818155,0.00022078,2]
[312697873,1706155833766,-464.24,0.00022763,2]
[312697874,1706155833775,-1000.0,0.00022791,2]
[312697875,1706155833785,-1207.8269,0.00022899,2]
[312697876,1706155833795,-486.3236,0.000229,2]
[312697878,1706155833804,-200.0,0.000229,8]
[312697880,1706155833813,-178.77206168,0.0002299,2]
[312697882,1706155833822,-166.61664257,0.00022997,2]
[312697884,1706155833832,-150.0,0.00022997,2]
[312697886,1706155833841,-2106.18420527,0.00022998,2]
[312697888,1706155833850,-161.5300588,0.00022998,2]
[312697890,1706155833859,-708.23147458,0.00022998,2]
[312697892,1706155833868,-156.58380894,0.00022998,2]
[312697894,1706155833877,-561.91578337,0.00022998,2]
[312697896,1706155833886,-2418.56954635,0.00022998,2]
[312697898,1706155833896,-78643.52687181,0.00022998,2]
[312697900,1706155833905,-26445.44440327,0.00022999,2]
[312697939,1706155838261,-396.18814813,0.00022999,2]
[312697940,1706155838295,-246743.99923074,0.00022999,2]
[312697942,1706155838305,-438157.69942809,0.00023,2]
[312697944,1706155838314,-943.97973617,0.00023,2]
[312697946,1706155838323,-223.07409071,0.00023,20]
[312697948,1706155838332,-499.99,0.00023,2]
[312697950,1706155838341,-1753.69,0.00024132,2]
[312697952,1706155838350,-1554.41,0.00024276,2]
[312697954,1706155838359,-1281.71,0.00024359,2]
[312697956,1706155838367,-385.17,0.00024385,2]
[312697958,1706155838376,-250.0,0.00024448,2]
[312697960,1706155838385,-250.0,0.00024658,2]
[312697962,1706155838394,-1771.92421568,0.00024781,2]
[312697964,1706155838403,-270.03,0.00024799,2]
[312697966,1706155838412,-450.0,0.00025,3]
[312697968,1706155838421,-202.84481839,0.00025,2]
[312697970,1706155838430,-159.14140732,0.00025,2]
[312697971,1706155838439,-387.62224241,0.00025,2]
[312697973,1706155838448,-464.24,0.00025027,2]
[312697976,1706155838458,-163.15038393,0.00025155,2]
[312697977,1706155838467,-1281.71,0.0002526,2]
[312697979,1706155838476,-1000.0,0.0002564,2]
[312697981,1706155838485,-1554.41,0.0002592,2]
[312697983,1706155838494,-500.0,0.00026,2]
[312697985,1706155838503,-1281.71,0.00026162,2]
[312697987,1706155838512,-205.0,0.00026386,2]
[312697990,1706155838522,-1400.02,0.00026575,2]
[312697992,1706155838531,-164.22,0.00026983,2]
[312697994,1706155838541,-500.0,0.00027,3]
[312697996,1706155838550,-165.74290237,0.00027,2]
[312697998,1706155838559,-1281.71,0.00027063,2]
[312697999,1706155838568,-168.85,0.00027162,2]
[312698002,1706155838577,-464.24,0.00027291,2]
[312698004,1706155838586,-208.37,0.00027341,2]
[312698006,1706155838595,-205.0,0.00027347,3]
[312698008,1706155838604,-330.51,0.00027397,2]
[312698010,1706155838613,-584.55,0.00027397,2]
[312698012,1706155838622,-584.55,0.00027556,2]
[312698014,1706155838631,-1554.41,0.00027564,2]
[312698015,1706155838640,-330.51,0.00027686,2]
[312698017,1706155838650,-584.55,0.00027714,2]
[312698019,1706155838659,-584.55,0.00027872,2]
[312698021,1706155838668,-3226.0,0.000279,2]
[312698023,1706155838678,-1281.71,0.00027964,2]
[312698025,1706155838687,-330.51,0.00027974,2]
[312698027,1706155838696,-10013.0,0.00028,2]
[312698029,1706155838706,-584.55,0.0002803,2]
[312698031,1706155838715,-584.55,0.00028189,2]
[312698034,1706155838725,-2379.58,0.00028203,2]
[312698036,1706155838734,-1399.96,0.00028203,2]
[312698038,1706155838745,-330.51,0.00028262,2]
[312698040,1706155838754,-205.0,0.00028307,5]
[312698042,1706155838763,-163.15038393,0.00028332,2]
[312698044,1706155838773,-584.55,0.00028347,2]
[312698046,1706155838781,-1000.0,0.00028489,2]
[312698048,1706155838791,-584.55,0.00028505,2]
[312698050,1706155838800,-330.51,0.00028551,2]
[312698052,1706155838809,-584.55,0.00028664,2]
[312698054,1706155838818,-150.0,0.000287,2]
[312698056,1706155838828,-150.0,0.000287,2]
[312698058,1706155838838,-247.93920139,0.00028813,2]
[312698060,1706155838846,-500.0,0.00028814,2]
[312698062,1706155838855,-12211.125,0.00028814,2]
[312698064,1706155838865,-1000.0,0.00028814,2]
[312698066,1706155838874,-100000.0,0.00028814,2]
[312698068,1706155838883,-584.55,0.00028822,2]
[312698070,1706155838892,-330.51,0.00028839,2]
[312698072,1706155838902,-500.0,0.00028913,2]
[312698074,1706155838911,-550.0,0.00029,3]
[312698076,1706155838922,-330.51,0.00029128,2]
[312698078,1706155838932,-541.10677632,0.00029157,2]
[312698080,1706155838942,-1554.41,0.00029208,2]
[312698082,1706155838951,-150.0,0.00029248,2]
[312698084,1706155838960,-205.0,0.00029267,6]
[312698086,1706155838969,-330.51,0.00029416,2]
[312698088,1706155838978,-464.24,0.00029554,2]
[312698090,1706155838988,-71586.0,0.000297,2]
[312698093,1706155838997,-330.51,0.00029704,2]
[312698095,1706155839006,-150.0,0.00029796,2]
[312698097,1706155839015,-170.64638635,0.000299,2]
[312698098,1706155839025,-152.88280839,0.000299,2]
[312698100,1706155839035,-2014.30679956,0.000299,2]
[312698102,1706155839049,-330.51,0.00029993,2]
[312698104,1706155839059,-1073.49657458,0.0003,4]
[312698106,1706155839071,-584.23897063,0.0003,2]
[312698108,1706155839080,-155.0,0.0003,2]
[312698111,1706155839090,-12551.99827427,0.0003,4]
[312698112,1706155839099,-9652.53351491,0.0003,2]
[312698114,1706155839108,-45536.370379,0.0003,4]
[312698116,1706155839119,-694.51811641,0.0003,2]
[312698119,1706155839128,-157.357135,0.0003,2]
[312698120,1706155839139,-486.1317031,0.000301,2]
[312698122,1706155839148,-154.4,0.00030137,2]
[312698125,1706155839157,-205.0,0.00030228,8]
[312698127,1706155839167,-800.0,0.00030247,2]
[312698129,1706155839176,-330.51,0.00030281,2]
[312698130,1706155839185,-330.51,0.00030569,2]
[312698132,1706155839195,-602.00595599,0.000308,2]
[312698135,1706155839205,-1554.41,0.00030852,2]
[312698136,1706155839214,-330.51,0.00030858,2]
[312698139,1706155839223,-15936.46897682,0.000309,2]
[312698140,1706155839233,-152.88280836,0.000309,2]
[312698143,1706155839242,-7618.25337232,0.00031,2]
[312698145,1706155839252,-370.42091346,0.00031,2]
[312698147,1706155839261,-600.0,0.00031,3]
[312698148,1706155839270,-330.51,0.00031146,2]
[312698149,1706155839279,-205.0,0.00031188,10]
[312698150,1706155839288,-1000.0,0.00031338,2]
[312698151,1706155839297,-330.51,0.00031435,2]
[312698152,1706155839308,-248.21248276,0.0003144,2]
[312698153,1706155839317,-163.15038393,0.0003151,2]
[312698154,1706155839326,-180.0,0.00031644,2]
[312698155,1706155839335,-197.92,0.00031644,2]
[312698156,1706155839344,-154.4,0.00031703,2]
[312698157,1706155839353,-330.51,0.00031723,2]
[312698159,1706155839363,-304670.065251,0.000318,2]
[312698161,1706155839372,-2014.30679949,0.00031809,3]
[312698163,1706155839381,-464.24,0.00031818,2]
[312698165,1706155839390,-500.0,0.000319,11]
[312698167,1706155839399,-152.88280836,0.000319,2]
[312698169,1706155839408,-500.0,0.00031999,7]
[312698171,1706155839417,-594.74166293,0.00031999,7]
[312698173,1706155839426,-1962.48471159,0.00032,2]
[312698175,1706155839434,-129846.73794459,0.00032,2]
[312698177,1706155839444,-3821.00997196,0.00032,2]
[312698179,1706155839453,-330.51,0.00032011,2]
[312698181,1706155839463,-205.0,0.00032149,11]
[312698183,1706155839472,-512.04453184,0.00032249,2]
[312698185,1706155839481,-330.51,0.000323,2]
[312698187,1706155839490,-1554.41,0.00032495,2]
[312698189,1706155839499,-155.82477594,0.000325,2]
[312698191,1706155839508,-330.51,0.00032588,2]
[312698193,1706155839518,-330.51,0.00032877,2]
[312698195,1706155839527,-161.53,0.00032877,15]
[312698197,1706155839536,-152.88280836,0.000329,2]
[312698199,1706155839545,-960.32677932,0.00033,2]
[312698201,1706155839554,-282.31612789,0.00033,4]
[312698203,1706155839564,-650.0,0.00033,3]
[312698205,1706155839573,-205.0,0.00033109,13]
[312698207,1706155839582,-154.4,0.00033268,2]
[312698210,1706155839592,-729.22196397,0.000335,2]
[312698212,1706155839601,-2014.30679949,0.00033718,5]
[312698214,1706155839610,-152.88280836,0.000339,2]
[312698216,1706155839620,-1000.0,0.00034,4]
[312698218,1706155839629,-6164.81249171,0.00034,2]
[312698220,1706155839638,-205.0,0.00034069,15]
[312698222,1706155839647,-464.24,0.00034082,2]
[312698223,1706155839657,-385.17,0.00034139,2]
[312698226,1706155839666,-1000.0,0.00034187,2]
[312698228,1706155839676,-163.15038393,0.00034687,2]
[312698229,1706155839685,-154.4,0.00034834,2]
[312698231,1706155839694,-25371.31999071,0.00034839,2]
[312698233,1706155839703,-1349.27729536,0.000349,2]
[312698235,1706155839712,-1349.27729518,0.000349,2]
[312698237,1706155839721,-1349.27729518,0.000349,2]
[312698239,1706155839730,-1349.27729518,0.000349,2]
[312698241,1706155839740,-1349.27729518,0.000349,2]
[312698244,1706155839749,-1349.27729518,0.000349,2]
[312698246,1706155839758,-1349.27729518,0.000349,2]
[312698248,1706155839767,-1349.27729518,0.000349,2]
[312698250,1706155839777,-152.88280836,0.000349,2]
[312698252,1706155839786,-1257.60276225,0.00035,4]
[312698254,1706155839795,-3273.14539905,0.00035,7]
[312698256,1706155839804,-280.12915127,0.00035,2]
[312698258,1706155839814,-700.0,0.00035,3]
[312698260,1706155839823,-205.0,0.0003503,16]
[312698262,1706155839832,-153.51,0.000354,3]
[312698264,1706155839843,-380.45,0.000354,3]
[312698266,1706155839851,-380.45,0.000354,3]
[312698268,1706155839861,-380.45,0.000354,3]
[312698270,1706155839870,-380.45,0.000354,3]
[312698272,1706155839880,-380.45,0.000354,3]
[312698274,1706155839889,-380.45,0.000354,3]
[312698275,1706155839898,-380.45,0.000354,3]
[312698277,1706155839908,-380.45,0.000354,3]
[312698278,1706155839917,-380.45,0.000354,3]
[312698279,1706155839926,-380.45,0.000354,3]
[312698280,1706155839935,-380.45,0.000354,3]
[312698281,1706155839945,-380.45,0.000354,3]
[312698282,1706155839954,-380.45,0.000354,3]
[312698283,1706155839964,-380.45,0.000354,3]
[312698284,1706155839973,-380.45,0.000354,3]
[312698285,1706155839983,-380.45,0.000354,3]
[312698286,1706155839993,-380.45,0.000354,3]
[312698287,1706155840003,-380.45,0.000354,3]
[312698288,1706155840012,-380.45,0.000354,3]
[312698289,1706155840022,-380.45,0.000354,3]
[312698290,1706155840033,-3541.56926478,0.00035497,2]
[312698291,1706155840042,-66729.78668001,0.000355,30]
[312698292,1706155840051,-1816.7,0.000355,5]
[312698293,1706155840061,-1349.27729518,0.00035532,2]
[312698294,1706155840070,-434.0,0.0003554,2]
[312698295,1706155840080,-2014.30679949,0.00035627,8]
[312698296,1706155840091,-152.88280836,0.000359,2]
[312698297,1706155840101,-156.16298845,0.0003591,5]
[312698298,1706155840112,-205.0,0.0003599,18]
[312698299,1706155840126,-17051.99018658,0.00036,2]
[312698300,1706155840135,-464.24,0.00036346,2]
[312698301,1706155840145,-154.4,0.00036399,2]
[312698302,1706155840155,-1000.0,0.000368,7]
[312698303,1706155840165,-5000.0,0.0003689,7]
[312698304,1706155840175,-7999.99,0.0003689,14]
[312698305,1706155840184,-1825.18,0.0003689,5]
[312698306,1706155840195,-1815.01,0.0003689,5]
[312698307,1706155840204,-1811.1,0.0003689,5]
[312698308,1706155840216,-1803.05,0.0003689,5]
[312698309,1706155840226,-1837.68,0.0003689,5]
[312698310,1706155840236,-176.54,0.000369,2]
[312698311,1706155840245,-778.8580762,0.000369,2]
[312698312,1706155840254,-152.88280836,0.000369,2]
[312698313,1706155840407,-205.0,0.00036951,20]
[312698314,1706155840417,-161.53,0.00036986,15]
[312698315,1706155840428,-750.0,0.00037,3]
[312698316,1706155840438,-152.62234094,0.00037,2]
[312698317,1706155840447,-1349.27729518,0.00037111,2]
[312698318,1706155840457,-172.12827896,0.00037296,15]
[312698319,1706155840467,-176.54,0.00037448,2]
[312698320,1706155840477,-2014.30679949,0.00037536,10]
[312698321,1706155840486,-10000.0,0.00037558,3]
[312698322,1706155840495,-150.0,0.00037618,2]
[312698323,1706155840504,-150.0,0.00037674,2]
[312698324,1706155840513,-1000.0,0.000377,7]
[312698325,1706155840522,-1000.0,0.000377,7]
[312698326,1706155840532,-1000.0,0.000377,7]
[312698327,1706155840541,-1000.0,0.000377,7]
[312698328,1706155840552,-1000.0,0.000377,7]
[312698329,1706155840562,-1020.0,0.000377,7]
[312698330,1706155840572,-1013.0,0.000377,7]
[312698331,1706155840581,-1000.0,0.000377,7]
[312698332,1706155840590,-1000.0,0.000377,7]
[312698333,1706155840600,-1000.0,0.000377,7]
[312698334,1706155840609,-150.0,0.00037771,2]
[312698335,1706155840619,-1400.02,0.00037808,2]
[312698336,1706155840629,-163.15038393,0.00037865,2]
[312698337,1706155840638,-2735.0,0.0003789,4]
[312698338,1706155840647,-802.0,0.00037898,2]
[312698339,1706155840657,-300.0,0.00037898,2]
[312698340,1706155840667,-500.0,0.00037898,2]
[312698341,1706155840677,-227.39380944,0.000379,2]
[312698342,1706155840686,-185.4250769,0.000379,2]
[312698343,1706155840695,-800.0,0.000379,13]
[312698344,1706155840704,-152.88280836,0.000379,2]
[312698345,1706155840713,-597258.539399,0.000379,2]
[312698346,1706155840723,-24450.17218279,0.000379,2]
[312698347,1706155840732,-205.0,0.00037911,21]
[312698348,1706155840742,-154.4,0.00037965,2]
[312698349,1706155840751,-176.54,0.00037996,2]
[312698350,1706155840760,-150.0,0.00038027,2]
[312698351,1706155840770,-7015.59,0.0003814,10]
[312698352,1706155840780,-5846.32,0.0003814,10]
[312698353,1706155840789,-5621.0,0.0003815,30]
[312698354,1706155840799,-5621.0,0.0003815,60]
[312698355,1706155840808,-150.0,0.00038174,2]
[312698356,1706155840817,-200.0,0.00038248,5]
[312698357,1706155840825,-151.90559164,0.00038295,2]
[312698358,1706155840835,-150.0,0.00038356,2]
[312698359,1706155840844,-202.52059253,0.00038415,7]
[312698360,1706155840853,-5749.69984106,0.00038447,5]
[312698361,1706155840862,-1000.0,0.000385,2]
[312698362,1706155840871,-176.54,0.00038544,2]
[312698363,1706155840881,-464.24,0.0003861,2]
[312698364,1706155840891,-99543.0898998,0.0003864,3]
[312698365,1706155840900,-2466.52430217,0.0003865,30]
[312698366,1706155840937,-1749.47569783,0.0003865,30]
[312698367,1706155840948,-4216.0,0.0003865,60]
[312698368,1706155840958,-1349.27729518,0.00038689,2]
[312698369,1706155840968,-205.0,0.00038871,23]
[312698370,1706155840977,-150.0,0.00038876,2]
[312698371,1706155840987,-231.33603672,0.0003888,2]
[312698372,1706155840998,-231.3360367,0.0003888,2]
[312698373,1706155841009,-231.3360367,0.0003888,2]
[312698374,1706155841020,-231.3360367,0.0003888,2]
[312698375,1706155841031,-231.3360367,0.0003888,2]
[312698376,1706155841045,-152.88280836,0.000389,2]
[312698377,1706155841056,-231.3360367,0.00038947,2]
[312698378,1706155841067,-282.26694691,0.0003898,2]
[312698379,1706155841079,-976.76437376,0.00039,4]
[312698380,1706155841090,-620.81629579,0.00039,4]
[312698381,1706155841099,-701.12691554,0.00039,10]
[312698382,1706155841109,-197.48451168,0.00039,4]
[312698383,1706155841119,-1430.03686544,0.00039,2]
[312698384,1706155841129,-800.0,0.00039,3]
[312698385,1706155841138,-257.33,0.00039,30]
[312698386,1706155841147,-150.0,0.00039,20]
[312698387,1706155841157,-150.0,0.00039017,2]
[312698388,1706155841166,-176.54,0.00039092,2]
[312698389,1706155841176,-257.33,0.00039137,30]
[312698390,1706155841186,-2810.0,0.0003915,30]
[312698391,1706155841196,-2810.0,0.0003915,60]
[312698392,1706155841207,-153.45120575,0.0003915,30]
[312698393,1706155841216,-150.0,0.00039209,2]
[312698394,1706155841225,-428.17171428,0.00039234,31]
[312698395,1706155841234,-170.8,0.0003926,2]
[312698396,1706155841243,-1291.96540923,0.00039273,2]
[312698397,1706155841284,-208.03459077,0.00039273,2]
[312698398,1706155841293,-257.33,0.00039274,30]
[312698399,1706155841302,-2364.26303728,0.0003931,11]
[312698400,1706155841312,-1500.0,0.00039358,2]
[312698401,1706155841322,-150.0,0.00039366,2]
[312698402,1706155841331,-257.33,0.00039411,30]
[312698403,1706155841340,-2014.30679949,0.00039445,13]
[312698404,1706155841350,-6467.48581387,0.00039499,4]
[312698405,1706155841360,-491.75034239,0.000395,4]
[312698406,1706155841369,-1500.0,0.00039518,2]
[312698407,1706155841379,-154.4,0.0003953,2]
[312698408,1706155841388,-257.33,0.00039548,30]
[312698409,1706155841397,-153.51,0.000396,3]
[312698410,1706155841407,-153.51,0.000396,3]
[312698411,1706155841416,-380.45,0.000396,3]
[312698412,1706155841425,-380.45,0.000396,3]
[312698413,1706155841435,-380.45,0.000396,3]
[312698414,1706155841444,-380.45,0.000396,3]
[312698415,1706155841454,-380.45,0.000396,3]
[312698416,1706155841465,-380.45,0.000396,3]
[312698417,1706155841475,-380.45,0.000396,3]
[312698418,1706155841485,-380.45,0.000396,3]
[312698419,1706155841494,-380.45,0.000396,3]
[312698420,1706155841504,-380.45,0.000396,3]
[312698421,1706155841515,-380.45,0.000396,3]
[312698422,1706155841524,-380.45,0.000396,3]
[312698423,1706155841533,-380.45,0.000396,3]
[312698424,1706155841543,-380.45,0.000396,3]
[312698425,1706155841552,-380.45,0.000396,3]
[312698426,1706155841562,-380.45,0.000396,3]
[312698427,1706155841571,-380.45,0.000396,3]
[312698428,1706155841581,-380.45,0.000396,3]
[312698429,1706155841591,-380.45,0.000396,3]
[312698430,1706155841601,-380.45,0.000396,3]
[312698431,1706155841610,-1260.3814322,0.00039606,2]
[312698432,1706155841620,-150.0,0.00039626,2]
[312698433,1706155841630,-176.54,0.0003964,2]
[312698434,1706155841639,-150.0,0.00039672,2]
[312698435,1706155841649,-150.0,0.00039678,2]
[312698436,1706155841658,-150.0,0.0003968,2]
[312698437,1706155841669,-257.33,0.00039685,30]
[312698438,1706155841678,-150.0,0.0003969,2]
[312698439,1706155841688,-150.0,0.00039692,2]
[312698440,1706155841696,-1500.0,0.00039707,2]
[312698441,1706155841706,-150.0,0.00039712,2]
[312698442,1706155841715,-150.0,0.00039712,2]
[312698443,1706155841724,-8239.1,0.00039726,2]
[312698444,1706155841734,-150.0,0.00039731,2]
[312698445,1706155841743,-150.0,0.00039749,2]
[312698446,1706155841753,-150.0,0.00039752,2]
[312698447,1706155841762,-150.0,0.00039759,2]
[312698448,1706155841772,-150.0,0.0003977,2]
[312698449,1706155841781,-150.0,0.00039791,2]
[312698450,1706155841791,-257.33,0.00039822,30]
[312698451,1706155841801,-150.0,0.00039822,2]
[312698452,1706155841810,-150.0,0.00039823,2]
[312698453,1706155841820,-150.0,0.00039827,2]
[312698454,1706155841829,-205.0,0.00039832,25]
[312698455,1706155841839,-150.0,0.00039833,2]
[312698456,1706155841849,-36899.06270487,0.00039845,3]
[312698457,1706155841862,-848.26710872,0.00039845,3]
[312698458,1706155841919,-730.50066288,0.00039845,3]
[312698459,1706155841933,-1464.98189673,0.00039845,3]
[312698460,1706155841945,-2377.06365989,0.00039845,3]
[312698462,1706155842787,-166.0,0.00036,2]
[312698463,1706155842796,-94.72695755,0.00037397,2]
[312698464,1706155842816,-71.27304245,0.00037397,2]
[312698465,1706155842825,-543.43566378,0.00039845,3]
[312698467,1706155842949,-150.0,0.00039367,2]
[312698468,1706155842958,-525.21345931,0.00039845,3]
[312698469,1706155842969,-1662.75432798,0.00039845,3]
[312698470,1706155842980,-3125.37646741,0.00039845,3]
[312698471,1706155842999,-3303.94373171,0.00039845,3]
[312698472,1706155843014,-1019.69321672,0.00039845,3]
[312698473,1706155843024,-150.0,0.00039851,2]
[312698474,1706155843034,-150.0,0.00039858,2]
[312698475,1706155843045,-300.0,0.00039859,2]
[312698476,1706155843054,-150.0,0.0003986,2]
[312698477,1706155843063,-150.0,0.00039873,2]
[312698478,1706155843072,-150.0,0.00039883,2]
[312698479,1706155843082,-251.10073228,0.00039886,2]
[312698480,1706155843104,-356.99633322,0.00039886,2]
[312698481,1706155843118,-582.6880489,0.00039886,2]
[312698482,1706155843896,-597.10652711,0.00026575,2]
[312698483,1706155843916,-429.3413207,0.00026575,2]
[312698484,1706155843928,-292.92215219,0.00026575,2]
[312698485,1706155843937,-409.32373683,0.00037808,2]
[312698486,1706155843950,-910.04626317,0.00037808,2]
[312698487,1706155843959,-150.0,0.00039844,2]
[312698488,1706155843969,-309.2148856,0.00039886,2]
[312698489,1706155843978,-150.0,0.00039893,2]
[312698490,1706155843988,-350.2718683,0.000399,4]
[312698491,1706155843998,-1100.0,0.000399,14]
[312698492,1706155844007,-152.88280836,0.000399,6]
[312698493,1706155844018,-150.0,0.00039901,2]
[312698494,1706155844030,-150.0,0.00039907,2]
[312698495,1706155844042,-150.0,0.0003991,2]
[312698496,1706155844052,-150.0,0.00039911,2]
[312698497,1706155844061,-130.49953623,0.00039917,2]
[312698498,1706155844086,-19.50046377,0.00039917,2]
[312698499,1706155844095,-150.0,0.0003992,2]
[312698500,1706155844104,-5014.51887002,0.00039923,5]
[312698501,1706155844115,-150.0,0.00039931,2]
[312698502,1706155844124,-150.0,0.00039933,2]
[312698503,1706155844134,-150.0,0.00039933,2]
[312698504,1706155844143,-10000.0,0.00039939,3]
[312698505,1706155844154,-150.0,0.00039945,2]
[312698506,1706155844163,-150.0,0.00039946,2]
[312698507,1706155844172,-150.0,0.0003995,2]
[312698508,1706155844183,-150.0,0.0003995,2]
[312698509,1706155844192,-150.0,0.00039953,2]
[312698510,1706155844202,-150.0,0.00039954,2]
[312698511,1706155844211,-257.33,0.00039959,30]
[312698512,1706155844221,-150.0,0.00039959,2]
[312698513,1706155844232,-150.0,0.00039968,2]
[312698514,1706155844242,-150.0,0.00039977,2]
[312698515,1706155844252,-150.0,0.00039977,2]
[312698516,1706155844262,-150.0,0.00039981,2]
[312698517,1706155844271,-150.0,0.00039984,2]
[312698518,1706155844281,-150.0,0.00039987,2]
[312698519,1706155844291,-200.0,0.00039988,7]
[312698520,1706155844301,-800.0,0.00039988,8]
[312698521,1706155844311,-200.0,0.00039988,7]
[312698522,1706155844320,-800.0,0.00039989,8]
[312698523,1706155844330,-150.0,0.0003999,2]
[312698524,1706155844340,-150.0,0.00039995,2]
[312698525,1706155844350,-1500.0,0.00039998,2]
[312698526,1706155844360,-22049.77147498,0.0004,4]
[312698527,1706155844370,-2272.01463956,0.0004,4]
[312698528,1706155844379,-569.5924431,0.0004,4]
[312698529,1706155844388,-155.0,0.0004,2]
[312698530,1706155844397,-54328.02898102,0.0004,4]
[312698531,1706155844406,-608.46,0.0004,14]
[312698532,1706155844415,-961.81967318,0.0004,4]
[312698533,1706155844425,-1085.37856486,0.0004,4]